[Event "26th Hit Open-A 2022"]
[Site "Nova Gorica"]
[Date "2022.09.17"]
[Round "2.22"]
[White "Lavrencic, Matic"]
[Black "Verbin, Valentina"]
[Result "1/2-1/2"]
[ECO "B90"]
[WhiteElo "2274"]
[BlackElo "2049"]
[Annotator "TA"]
[PlyCount "71"]
[EventDate "2022.09.16"]
[EventType "swiss"]
[EventCountry "SLO"]
[SourceTitle "playchess.com"]
[Source "ChessBase"]
[SourceQuality "1"]
[TimeControl "5400+30"]

{[%evp 20,71,14,18,10,24,30,21,26,40,50,50,19,22,45,24,27,0,0,0,0,-54,-53,-62,-76,-57,-57,-119,0,-89,-78,-118,-43,-104,-54,-117,-119,-113,-104,-104,-76,-127,-93,-71,-45,-33,0,-89,0,-28,0,-92,0,-61]} 1. e4 {[%emt 0:00:04]} c5 {[%emt 0:02:25]} 2. Nf3 {[%emt 0:00:14]} d6 {[%emt 0:00:34]} 3. d4 {[%emt 0:00:08]} cxd4 {[%emt 0:00:28]} 4. Nxd4 {[%emt 0:00:07]} Nf6 {[%emt 0:00:13]} 5. Nc3 {[%emt 0:00:11]} a6 {[%emt 0:00:28]} 6. Be3 {[%emt 0:00:40]} e5 {[%emt 0:00:56]} 7. Nb3 {[%emt 0:00:07]} Be7 {[%emt 0:00:27]} 8. f3 {[%emt 0:00:07]} Be6 {[%emt 0:00:54]} 9. Qd2 {[%emt 0:00:06]} h5 {[%emt 0:00:46]} 10. Nd5 {[%emt 0:00:09]} Nxd5 {[%emt 0:01:01]} 11. exd5 {[%emt 0:00:06]} Bf5 {[%emt 0:00:43] B90: Sicilian Najdorf: Unusual White 6th moves, 6 Be3 Ng4 and 6 Be3 e5.} 12. Be2 {[%emt 0:00:06]} a5 {[%emt 0:01:33]} 13. a4 {[%emt 0:00:40]} Nd7 {[%emt 0:06:38] 13...0-0 gains popularity.} 14. O-O {[%emt 0:01:04]} O-O {[%emt 0:00:48]} 15. f4 {[%emt 0:01:06]} exf4 {[%emt 0:01:47]} 16. Bxf4 {[%emt 0:03:03]} Rc8 {[%emt 0:01:05]} 17. Nd4 {[%emt 0:02:34]} Bg6 {[%emt 0:02:45] [#]} 18. Be3 $146 {[%emt 0:09:34]} ({Predecessor:} 18. Kh1 Nc5 19. Bb5 Bf6 20. Rae1 h4 21. Re3 Ne4 22. Qd1 Rc5 23. c3 Rxd5 24. Qe2 Bxd4 25. Rxe4 {0-1 (44) Kulaots,K (2548)-Petkov,M (2443) Reykjavik 2021}) 18... Bf6 {[%emt 0:17:15]} 19. c3 {[%emt 0:06:55]} Nc5 {[%emt 0:03:37]} 20. Bc4 {[%emt 0:11:17]} ({White should play} 20. Rae1 $11) 20... Re8 $15 {[%emt 0:06:40] ...Ne4 is the strong threat.} 21. b3 {[%emt 0:06:49]} Ne4 {[%emt 0:03:22]} 22. Qc1 {[%emt 0:03:01]} Be5 {[%emt 0:04:23]} 23. Qe1 {[%emt 0:05:42]} (23. Bf4 $15) 23... Bf6 {[%emt 0:07:19]} (23... h4 $17) 24. Ra2 {[%emt 0:06:17]} (24. Qc1 $1 $11 {keeps the balance.}) 24... h4 {[%emt 0:06:15][%cal Bh5h4,Bh4h3][%mdl 32]} 25. Qc1 {[%emt 0:06:49] [#]} Re7 {[%emt 0:15:37]} (25... Rxc4 $1 $17 {[%mdl 512]} 26. bxc4 Qc8) 26. Re2 {[%emt 0:02:31] [#]} (26. h3 $15) 26... Rec7 {[%emt 0:00:55]} (26... Rxc4 $1 $17 {[%mdl 512]} 27. bxc4 Qc8) 27. Qb2 {[%emt 0:10:59]} (27. Qe1 $15) 27... h3 $17 {[%emt 0:06:52]} 28. Nb5 {[%emt 0:03:27] Strongly threatening Bb6.} Re7 {[%emt 0:04:20]} 29. Bd4 {[%emt 0:01:51]} Bxd4+ {[%emt 0:01:21]} 30. Nxd4 {[%emt 0:00:19]} ({Better is} 30. cxd4 hxg2 31. Rxg2) 30... Qb6 {[%emt 0:00:32][%cal Oe4c3]} 31. Kh1 {[%emt 0:01:24]} Bh5 {[%emt 0:01:34]} 32. Rc2 {[%emt 0:03:17]} Bg6 {[%emt 0:00:28]} ({Black should try} 32... Nf6 $15) 33. Re2 {[%emt 0:02:16]} Bh5 {[%emt 0:00:04]} (33... Re5 $17 {aiming for ...Ng5.} 34. Nf3 (34. gxh3 Nxc3 35. Qxc3 Rxe2 $15) 34... hxg2+ 35. Kxg2 Rh5) 34. Rc2 $11 {[%emt 0:00:18]} Bg6 {[%emt 0:00:03]} (34... Nf6 $11) 35. Re2 $17 {[%emt 0:00:05]} Bh5 {[%emt 0:00:04]} 36. Rc2 {[%emt 0:00:07] Weighted Error Value: White=0.21 (precise) /Black=0.27 (precise)} 1/2-1/2

[Event "26th Hit Open-A 2022"]
[Site "Nova Gorica"]
[Date "2022.09.17"]
[Round "2.23"]
[White "Debevec, Blaz"]
[Black "Stevanic, David"]
[Result "1/2-1/2"]
[ECO "C50"]
[WhiteElo "2056"]
[BlackElo "2261"]
[Annotator "TA"]
[PlyCount "122"]
[EventDate "2022.09.16"]
[EventType "swiss"]
[EventCountry "SLO"]
[SourceTitle "playchess.com"]
[Source "ChessBase"]
[SourceQuality "1"]
[TimeControl "5400+30"]

{[%evp 9,122,15,37,8,13,14,13,12,15,0,3,7,0,0,0,0,0,0,7,-16,-16,-40,-37,-75,-73,-97,-77,-89,-88,-142,-139,-160,-143,-177,-135,-163,-166,-172,-142,-137,-131,-175,26,0,0,0,0,-20,-27,-33,0,0,0,0,0,0,0,0,0,0,0,0,0,0,0,0,0,0,0,0,0,0,0,0,0,0,0,0,0,0,0,0,0,0,0,0,0,0,0,0,0,0,0,0,0,0,0,0,0,0,0,0,0,0,0,0,0,0,0,0,0,0,0,0,0]} 1. e4 {[%emt 0:00:03]} e5 {[%emt 0:00:03]} 2. Nf3 {[%emt 0:00:22]} Nc6 {[%emt 0:00:07]} 3. Bc4 {[%emt 0:00:09]} Bc5 {[%emt 0:00:13]} 4. O-O {[%emt 0:00:29]} Nf6 {[%emt 0:00:14]} 5. d3 {[%emt 0:00:11]} a6 {[%emt 0:01:44]} 6. Nc3 {[%emt 0:02:30] C50: Hungarian Defence and Giuoco Pianissimo.} h6 {[%emt 0:02:18]} 7. Be3 {[%emt 0:01:04]} Bxe3 {[%emt 0:03:02]} 8. fxe3 {[%emt 0:00:07]} d6 {[%emt 0:00:05]} 9. a4 {[%emt 0:03:54]} Be6 {[%emt 0:00:55]} 10. Bxe6 {[%emt 0:01:34]} (10. Nd5 {keeps more tension.} O-O 11. Nxf6+ Qxf6 12. Nd2) 10... fxe6 {[%emt 0:00:02] [#]} 11. Ne2 $146 {[%emt 0:02:42]} ({Predecessor:} 11. Nh4 O-O 12. d4 Qe8 13. d5 Nb4 14. dxe6 Qxe6 15. Nf5 Rf7 16. Qe2 Raf8 17. Rad1 Kh7 18. Rf2 Na2 19. Qd3 Nxc3 20. Qxc3 Nxe4 21. Qd3 Nxf2 22. Nd4+ Qg6 {0-1 (22) Gold,C-Goehring,D freechess.de 2016}) 11... d5 {[%emt 0:03:22]} 12. exd5 {[%emt 0:01:34]} exd5 {[%emt 0:02:50]} 13. Ng3 {[%emt 0:04:14]} Qd7 {[%emt 0:03:31]} 14. e4 {[%emt 0:02:40]} O-O-O {[%emt 0:02:59]} 15. Qe2 {[%emt 0:00:54]} dxe4 {[%emt 0:04:58]} 16. Nxe4 {[%emt 0:01:19]} Nd4 {[%emt 0:00:38]} 17. Nxd4 {[%emt 0:03:14]} Qxd4+ {[%emt 0:00:23]} 18. Kh1 {[%emt 0:00:42]} Nxe4 {[%emt 0:01:27]} 19. dxe4 {[%emt 0:02:03]} (19. Qxe4 $142 Qxe4 20. dxe4) 19... Qxb2 $17 {[%emt 0:06:24]} 20. Rad1 {[%emt 0:02:26]} Rxd1 {[%emt 0:12:17]} 21. Rxd1 {[%emt 0:00:19][%mdl 4096] Endgame KQR-KQR} Rf8 {[%emt 0:00:32]} ({Stronger than} 21... Kb8 22. Qc4 $17) 22. Qg4+ {[%emt 0:01:09]} Kb8 {[%emt 0:00:50]} 23. Qxg7 {[%emt 0:00:56]} Rf2 {[%emt 0:02:57]} 24. Qxh6 {[%emt 0:05:06] [#] aiming for Rd8+.} Qd4 {[%emt 0:01:25][%cal Rd4d1][%mdl 512] Against Rd8+} 25. Qc1 {[%emt 0:03:27]} (25. Rg1 Rxc2) 25... Qc5 {[%emt 0:07:09]} (25... Qxa4 $2 26. Rd8+ Ka7 27. Qg1 Qxc2 28. Rf8 $18) ({Better is} 25... Qxe4 $19 {[%csl Gf2][%cal Re4g2]} 26. Qg5 Qxc2) 26. c3 {[%emt 0:12:57]} b6 {[%emt 0:03:46]} 27. h3 {[%emt 0:03:15]} Qc4 {[%emt 0:03:32]} 28. a5 {[%emt 0:03:49]} Qxe4 {[%emt 0:01:37][%csl Gf2][%cal Re4g2] [#]} 29. Qg5 {[%emt 0:01:28]} Kb7 {[%emt 0:10:39]} 30. axb6 {[%emt 0:02:09] The position is equal.} Kxb6 {[%emt 0:00:14]} 31. Qh6+ {[%emt 0:01:39]} Kb7 {[%emt 0:03:58][%csl Gf2][%cal Re4g2]} 32. Qg7 {[%emt 0:02:51]} a5 {[%emt 0:02:23]} 33. Qg3 {[%emt 0:03:54]} Re2 {[%emt 0:03:22]} 34. Kh2 {[%emt 0:08:08]} Re3 {[%emt 0:03:42]} 35. Qg4 {[%emt 0:03:08]} Qxg4 {[%emt 0:01:55]} 36. hxg4 {[%emt 0:00:02]} Rxc3 $11 {[%emt 0:00:07] KR-KR} 37. g5 {[%emt 0:00:22]} e4 {[%emt 0:02:31][%cal Be5e4,Be4e3,Be3e2][%mdl 32]} 38. Rd5 {[%emt 0:02:24] Inhibits Rc5.} Rc6 {[%emt 0:00:28] Hoping for ...Kb6.} 39. Rxa5 {[%emt 0:00:14]} Re6 {[%emt 0:00:15] Prevents Re5.} 40. Kg1 {[%emt 0:00:54]} e3 {[%emt 0:03:23]} 41. Kf1 {[%emt 0:00:10]} e2+ {[%emt 0:00:36]} 42. Ke1 {[%emt 0:00:06]} Kb6 {[%emt 0:01:57]} 43. Rf5 {[%emt 0:00:20]} c6 {[%emt 0:00:04]} 44. Rf3 {[%emt 0:01:21]} Kc7 {[%emt 0:01:10]} 45. Rg3 {[%emt 0:00:38]} Kd7 {[%emt 0:00:46]} 46. g6 {[%emt 0:01:13] g7 is the strong threat.} Re8 {[%emt 0:00:08]} 47. Rd3+ {[%emt 0:02:00]} Kc7 {[%emt 0:01:03]} 48. Rf3 {[%emt 0:02:07]} Kd6 {[%emt 0:00:25]} 49. g7 {[%emt 0:00:40] Threatens to win with Rf8.} Rg8 {[%emt 0:00:01]} 50. Rf7 {[%emt 0:00:23]} Ke6 {[%emt 0:00:19]} 51. Rc7 {[%emt 0:00:14]} Kf6 {[%emt 0:00:34]} 52. Rxc6+ {[%emt 0:00:39]} Kxg7 {[%emt 0:00:02]} 53. Kxe2 {[%emt 0:00:19]} Ra8 {[%emt 0:00:04]} 54. Kf3 {[%emt 0:00:23]} Ra3+ {[%emt 0:00:06]} 55. Kg4 {[%emt 0:00:11]} Ra4+ {[%emt 0:00:03]} 56. Kh5 {[%emt 0:00:07]} Ra5+ {[%emt 0:00:06]} 57. Kh4 {[%emt 0:00:08]} Ra4+ {[%emt 0:00:11]} 58. g4 {[%emt 0:00:05]} Ra5 {[%emt 0:00:08]} 59. g5 {[%emt 0:00:12]} Ra1 {[%emt 0:00:04]} 60. Rc7+ {[%emt 0:00:12]} Kg6 {[%emt 0:00:07]} 61. Rc6+ {[%emt 0:00:05]} Kg7 {[%emt 0:00:07] And White is the lucky defender.  Weighted Error Value: White=0.08 (flawless) /Black=0.09 (flawless)} 1/2-1/2

[Event "26th Hit Open-A 2022"]
[Site "Nova Gorica"]
[Date "2022.09.17"]
[Round "2.24"]
[White "Manish Anto Cristiano F"]
[Black "Mihelic, Vesna"]
[Result "1-0"]
[ECO "D36"]
[WhiteElo "2249"]
[BlackElo "2031"]
[Annotator "TA"]
[PlyCount "105"]
[EventDate "2022.09.16"]
[EventType "swiss"]
[EventCountry "SLO"]
[SourceTitle "playchess.com"]
[Source "ChessBase"]
[SourceQuality "1"]
[TimeControl "5400+30"]

{[%evp 20,105,0,0,0,0,0,-1,0,0,-13,0,-4,0,5,-22,-15,-20,0,0,18,-14,10,23,27,0,0,-39,-9,-66,-16,-9,0,-49,17,17,17,16,36,0,45,45,35,41,93,62,164,72,136,0,0,-8,-2,-10,-27,-25,-9,-10,0,0,0,0,0,0,0,0,466,445,1706,1648,1124,191,191,187,964,935,1259,1147,29976,29978,29972,29968,29949,5114,29986,29987,29988,29989]} 1. c4 {[%emt 0:00:04]} e6 {[%emt 0:00:07]} 2. Nc3 {[%emt 0:05:01]} d5 {[%emt 0:00:26]} 3. d4 {[%emt 0:01:36]} Nf6 {[%emt 0:00:12]} 4. cxd5 {[%emt 0:00:23]} exd5 {[%emt 0:00:08]} 5. Bg5 {[%emt 0:00:06]} Nbd7 {[%emt 0:00:56]} 6. e3 {[%emt 0:00:20]} Be7 {[%emt 0:00:20]} 7. Bd3 {[%emt 0:00:19]} c6 {[%emt 0:06:47]} 8. Nge2 {[%emt 0:00:49]} O-O {[%emt 0:02:14]} 9. Qc2 {[%emt 0:00:22]} Re8 {[%emt 0:00:44]} 10. O-O-O {[%emt 0:01:40]} Nf8 {[%emt 0:07:32]} 11. f3 {[%emt 0:07:21]} Nh5 {[%emt 0:13:11] D36: Queen's Gambit Declined: Exchange Variation: Main line (5 Bg5 c6 6 Qc2).} 12. Bxe7 {[%emt 0:02:21]} Qxe7 {[%emt 0:00:09]} 13. e4 {[%emt 0:00:10]} Qg5+ {[%emt 0:06:32] The position is equal.} 14. Kb1 {[%emt 0:00:40]} Qxg2 {[%emt 0:11:44]} 15. exd5 {[%emt 0:03:57] [#]} cxd5 $146 {[%emt 0:16:08]} ({Predecessor:} 15... Qxf3 16. Be4 Qf6 17. Rdf1 Qh6 18. Rhg1 Bd7 19. Ng3 Nxg3 20. Rxg3 Re7 21. dxc6 Bxc6 {0-1 (50) Alonso,J (2017)-Gertners,G (2111) IECG email 2004}) 16. Rhg1 {[%emt 0:03:06]} Qf2 {[%emt 0:11:34]} 17. Rdf1 {[%emt 0:02:16]} Qh4 {[%emt 0:00:45]} 18. Nxd5 {[%emt 0:01:33]} Bh3 {[%emt 0:00:40]} 19. Rd1 {[%emt 0:05:41]} Rac8 {[%emt 0:00:59]} 20. Ndc3 {[%emt 0:08:31]} Nf4 {[%emt 0:04:38]} 21. Nxf4 {[%emt 0:05:07]} Qxf4 {[%emt 0:00:08]} 22. Rg3 {[%emt 0:01:32]} Bd7 {[%emt 0:02:21]} 23. Qb3 {[%emt 0:02:00]} Bf5 {[%emt 0:01:25]} 24. Ne4 {[%emt 0:02:01]} (24. Qxb7 $2 Bxd3+ 25. Ka1 Ne6 $1 26. Rxd3 Rb8 27. Qxb8 Qc1+ 28. Nb1 Rxb8 $19) (24. Be4 $11) 24... Re6 {[%emt 0:01:13]} ({Better is} 24... Ng6 $15) 25. Qxb7 $40 {[%emt 0:03:43][%mdl 128] White mounts an attack.} Rec6 {[%emt 0:00:41]} 26. a3 {[%emt 0:02:12]} (26. Rgg1 $1 $11 {deserves consideration.}) 26... Be6 {[%emt 0:07:09]} (26... Ng6 $15) 27. Nc5 {[%emt 0:01:34]} Bf5 {[%emt 0:00:34]} 28. Be4 {[%emt 0:02:59]} (28. Qxa7 $2 Qxd4 29. Rg4 Qd5 $19) 28... Ne6 {[%emt 0:01:15]} 29. Qxa7 {[%emt 0:08:35]} (29. Bxf5 {feels hotter.} Qxf5+ 30. Ne4 g6 31. d5) 29... Bxe4+ {[%emt 0:01:54]} 30. fxe4 {[%emt 0:00:08]} (30. Nxe4 Rc1+ 31. Rxc1 Qxc1+ 32. Ka2 Qc4+ 33. Kb1 Nxd4 $15) 30... Nxc5 {[%emt 0:00:34]} 31. dxc5 {[%emt 0:00:07] aiming for Qe7.} Qxe4+ {[%emt 0:00:05]} (31... h5 $14) 32. Ka1 $16 {[%emt 0:00:06] White is more active.} Qc2 {[%emt 0:01:08]} (32... h5 $14) 33. Rgd3 {[%emt 0:01:35]} (33. Rf1 $6 R6c7 34. Qb6 Qxc5 35. Qxc5 Rxc5 $14) (33. Qd7 $18 {[%cal Od7d8] and White stays clearly on top. White threatens Qd8+! and mate.} g6 34. b4) 33... g6 {[%emt 0:00:39]} (33... g5 $142) 34. Rd7 {[%emt 0:01:55]} (34. Qe7 $16 {And now Rd8+ would win.} Qxc5 35. Rd8+ Kg7 36. Qxc5 (36. Qe8 Rxd8 37. Qxd8 h5 $11) 36... Rxc5 37. b4 Rxd8 38. Rxd8) 34... Rxc5 $11 {[%emt 0:00:45]} 35. Rf1 {[%emt 0:00:10][%cal Od7d8]} Qb3 {[%emt 0:00:26] ( -> ...Rc1+)} (35... Rb5 {gets mated.} 36. Rd8+ $3 {[%mdl 512]} (36. Qd4 Rf8 $11) 36... Kg7 37. Rxf7+ (37. Qd4+ Kh6 $18) 37... Kh6 38. Rxh7+ Kg5 39. Qe3+ Kf5 40. Rf7+ Kg4 41. Qf4+ Kh5 42. Rh7#) 36. Rd8+ {[%emt 0:00:51]} Rxd8 {[%emt 0:00:33]} 37. Qxc5 {[%emt 0:00:01][%mdl 4096] Endgame KQR-KQR} Rd2 {[%emt 0:00:31][%csl Gd2][%cal Rb3b2]} 38. Qe5 {[%emt 0:00:21]} Rd1+ {[%emt 0:00:40]} 39. Rxd1 {[%emt 0:00:06]} Qxd1+ {[%emt 0:00:01] KQ-KQ} 40. Ka2 {[%emt 0:00:01]} Qc2 {[%emt 0:00:21]} 41. Qb5 {[%emt 0:00:43]} f5 {[%emt 0:01:12]} 42. a4 {[%emt 0:00:01][%cal Ba3a4,Ba4a5,Ba5a6][%mdl 32]} Kf7 $2 {[%emt 0:00:28][%mdl 8192]} (42... Qe4 $11 {and Black stays safe.}) 43. a5 $18 {[%emt 0:00:21]} Ke6 {[%emt 0:00:46]} (43... Qc7 $142 44. a6 Ke7) 44. a6 $1 {[%emt 0:00:22] Threatening mate with Qb3+.} Qc7 {[%emt 0:00:10]} 45. Qb3+ $2 {[%emt 0:00:22]} (45. Qa4) 45... Kd7 {[%emt 0:01:08] [#]} 46. Qd5+ {[%emt 0:01:58]} Ke7 $2 {[%emt 0:00:32]} (46... Kc8) 47. b4 {[%emt 0:00:33] Black must now prevent Qc5+.} Qxh2+ {[%emt 0:00:39]} 48. Ka3 {[%emt 0:00:10] Intending a7 and mate.} Qc7 {[%emt 0:00:12]} 49. Qc5+ {[%emt 0:00:22]} Kd7 {[%emt 0:00:19] [#]} 50. a7 $1 {[%emt 0:01:05]} Qb7 {[%emt 0:00:28]} 51. Ka4 {[%emt 0:00:19]} (51. b5 $142 Qe4 52. Qc6+ Qxc6 53. bxc6+ Kxc6 54. a8=Q+ Kd7 55. Qg8 Ke7 56. Qxh7+ Kf6 57. Qh6) 51... f4 {[%emt 0:00:49]} 52. Qb5+ {[%emt 0:00:13]} Kc7 {[%emt 0:00:13]} 53. Qa5+ {[%emt 0:00:06] Weighted Error Value: White=0.34/Black=0.59} 1-0

[Event "26th Hit Open-A 2022"]
[Site "Nova Gorica"]
[Date "2022.09.17"]
[Round "2.25"]
[White "Walker, Samuel A"]
[Black "Ronka, Erik"]
[Result "0-1"]
[ECO "D45"]
[WhiteElo "2028"]
[BlackElo "2248"]
[Annotator "TA"]
[PlyCount "102"]
[EventDate "2022.09.16"]
[EventType "swiss"]
[EventCountry "SLO"]
[SourceTitle "playchess.com"]
[Source "ChessBase"]
[SourceQuality "1"]
[TimeControl "5400+30"]

{[%evp 14,102,13,3,9,-1,2,0,12,-45,0,-57,-27,-55,-62,-86,-16,-50,-83,-52,0,-13,0,0,-4,-95,0,0,0,0,110,146,93,60,57,0,0,0,0,0,66,41,48,50,46,-27,0,0,0,0,0,0,0,0,30,44,191,58,66,88,97,64,65,0,94,-109,-61,-105,-111,-98,-101,-248,-256,-249,-248,-237,-219,-5417,-984,-29975,-29965,-29981,-29982,-29982,-29983,-29984,-29985,-29985,-29986,-29986,-29987]} 1. d4 {[%emt 0:01:24]} d5 {[%emt 0:00:14]} 2. c4 {[%emt 0:00:12]} e6 {[%emt 0:02:45]} 3. Nf3 {[%emt 0:00:13]} Nf6 {[%emt 0:00:06]} 4. Nc3 {[%emt 0:00:20]} c6 {[%emt 0:00:56]} 5. e3 {[%emt 0:00:40]} Nbd7 {[%emt 0:00:08]} 6. Be2 {[%emt 0:00:13]} dxc4 {[%emt 0:00:42]} 7. a4 {[%emt 0:00:32] is now more promising than 7.Bxc4.} Bb4 {[%emt 0:03:30]} 8. O-O {[%emt 0:05:03]} Qe7 {[%emt 0:06:16] D45: Semi-Slav: 5 e3.} 9. e4 {[%emt 0:07:30]} e5 {[%emt 0:04:59]} 10. Bxc4 {[%emt 0:09:37]} O-O {[%emt 0:04:15] The position is equal.} 11. Qb3 {[%emt 0:12:37]} (11. Be3 $11) 11... a5 {[%emt 0:05:11]} 12. Bg5 {[%emt 0:01:14] [#]} (12. Be3 $11) 12... h6 $146 {[%emt 0:22:49]} ({Predecessor:} 12... exd4 13. Nxd4 Nc5 14. Qc2 h6 15. Bh4 g5 16. Bg3 Ncxe4 17. Rfe1 Bxc3 18. bxc3 Qc5 {1-0 (27) Zakhartsov,V (2514)-Kononenko,D (2312) Sochi 2021}) 13. Bh4 {[%emt 0:00:49]} exd4 {[%emt 0:05:19]} 14. Nxd4 {[%emt 0:05:18]} Nc5 {[%emt 0:03:22]} (14... Nb6 $1 $17 {...Qc5 is the strong threat.} 15. Nf5 Bxf5 16. exf5 Qe5) 15. Qa2 {[%emt 0:08:43]} g5 {[%emt 0:07:10]} 16. Bg3 {[%emt 0:00:58]} Nfxe4 {[%emt 0:02:47]} (16... Ncxe4 $5 {[%cal Rh6h5]} 17. Rae1 Rd8 $15) 17. Rfe1 {[%emt 0:06:16]} Bxc3 {[%emt 0:04:06]} (17... Nxc3 $2 18. bxc3 (18. Rxe7 $2 Nxa2 19. Bxa2 Nb3 $19) 18... Qf6 19. cxb4 axb4 20. Qd2 $18) 18. bxc3 {[%emt 0:00:42] Threatens to win with f3.} Qf6 {[%emt 0:01:01]} 19. Re3 {[%emt 0:02:13] [#]} (19. Qc2 $11 Nxg3 20. fxg3) 19... Bd7 {[%emt 0:05:39]} (19... Nxg3 20. fxg3 Bd7 21. Rf1 $14) (19... Nxc3 $1 $17 20. Rxc3 (20. Be5 Qxe5 21. Rxe5 Nxa2 $17) 20... Qxd4) 20. Qc2 $11 {[%emt 0:05:09]} Nxg3 {[%emt 0:05:56]} 21. fxg3 {[%emt 0:08:44]} Kg7 {[%emt 0:05:46]} (21... Kh8 $11) 22. Rf1 $16 {[%emt 0:01:27]} Qg6 {[%emt 0:00:05] And now ...Qxc2 would win.} 23. Qf2 {[%emt 0:00:11] Black must now prevent Rf3.} Be6 {[%emt 0:03:07]} 24. Nxe6+ {[%emt 0:04:35]} (24. Qe2 $14) 24... fxe6 $11 {[%emt 0:00:23]} 25. Rf3 {[%emt 0:00:21]} Rxf3 {[%emt 0:00:45]} 26. Qxf3 {[%emt 0:00:02]} Nd7 {[%emt 0:03:09]} (26... Nxa4 $2 27. Bd3 g4 28. Qe2 $18) (26... Kg8 $11) 27. Qe3 {[%emt 0:03:11][%mdl 1024] White has compensation.} Rf8 $1 {[%emt 0:01:01] Strongly threatening ...Rxf1+.} 28. Qd4+ {[%emt 0:02:08]} (28. Qxe6 $2 Qxe6 29. Bxe6 Nc5 $19) (28. Bxe6 Rxf1+ 29. Kxf1 Qb1+ 30. Kf2 (30. Qe1 $2 Qxe1+ 31. Kxe1 Nc5 $19) 30... Qc2+ 31. Kg1 (31. Qe2 $2 Qxe2+ 32. Kxe2 Nc5 $19) 31... Qd1+ 32. Kf2 Qc2+ 33. Kg1 (33. Qe2 $2 Qxe2+ 34. Kxe2 Nc5 $19) 33... Qxa4 $1 $11) 28... Nf6 {[%emt 0:00:01]} 29. Bd3 {[%emt 0:01:18] Against Qe4} (29. Bxe6 $14 Qe8 30. Qe5) 29... Qe8 {[%emt 0:00:17]} (29... e5 $5 {[%cal Re5d4]} 30. Qd6 Qe8 $11) 30. Qe5 {[%emt 0:00:49]} Qd7 {[%emt 0:01:37]} 31. Bc4 $36 {[%emt 0:00:22][%mdl 2048] White has good play.} b5 {[%emt 0:00:56]} 32. Bxe6 {[%emt 0:02:06]} Qa7+ {[%emt 0:00:36]} 33. Kh1 {[%emt 0:00:11]} Qe7 {[%emt 0:00:29]} (33... Qb8 $5 {[%cal Rb8e5]} 34. Qd4 bxa4 $11) 34. h4 {[%emt 0:02:59]} g4 {[%emt 0:00:19]} ({Black should try} 34... gxh4 $14 35. gxh4 (35. axb5 Re8 $11) 35... Kh8) 35. Rf4 {[%emt 0:00:51]} (35. axb5 cxb5 36. Re1 Qb7) (35. Rd1 $18 {aiming for Rd7.} Rd8 36. Rxd8 Qxd8 37. axb5 cxb5 38. Qxb5) 35... Re8 $14 {[%emt 0:01:21]} 36. Rxg4+ {[%emt 0:02:00]} Kh8 {[%emt 0:00:30]} 37. Rg6 {[%emt 0:00:56]} Qxe6 {[%emt 0:00:22]} 38. Qf4 {[%emt 0:06:27]} (38. Rxh6+ Kg7 39. Qg5+ Kf7 40. Qg6+ (40. axb5 $2 Rg8 $17) 40... Ke7 41. Qg7+ Qf7 $15) (38. Qxf6+ $14 Qxf6 39. Rxf6) 38... Qe5 {[%emt 0:00:04]} (38... Qe1+ $11 {remains equal.} 39. Kh2 Ng8 40. Rxh6+ Nxh6 41. Qxh6+ Kg8 42. Qg6+ Kf8 43. Qf6+ Kg8 44. Qg6+ Kh8 45. Qh6+ Kg8 46. Qg6+) 39. Qxh6+ $2 {[%emt 0:01:02]} ({Of course not} 39. Rxf6 $6 Qxf4 40. gxf4 bxa4 41. Rxh6+ Kg7 $11) ({Better is} 39. Qxf6+ $16 Qxf6 40. Rxf6) 39... Nh7 $15 {[%emt 0:00:03]} 40. Kh2 {[%emt 0:00:21] [#]} Rg8 $1 {[%emt 0:01:19]} ({Don't play} 40... Qxc3 $6 41. Rxc6 Qg7 42. axb5 $11) 41. Rxg8+ {[%emt 0:00:16]} Kxg8 {[%emt 0:00:01]} 42. Qxc6 {[%emt 0:00:14]} (42. Qg6+ $17 Kh8 43. Qxc6) 42... bxa4 $19 {[%emt 0:00:26]} 43. Qxa4 {[%emt 0:00:44]} Nf6 {[%emt 0:00:11] Prevents Qg4+.} 44. Qc6 {[%emt 0:00:24]} Kg7 {[%emt 0:01:28]} 45. Qf3 $2 {[%emt 0:01:02]} (45. Qb7+ Kg6 46. Qc6) 45... Ne4 {[%emt 0:00:27]} (45... Qe4 $142 46. Qf1 Ng4+ 47. Kh1 a4) 46. c4 {[%emt 0:00:32]} a4 {[%emt 0:00:46][%cal Ba5a4,Ba4a3,Ba3a2][%mdl 32] Black mates.} 47. h5 {[%emt 0:00:02] [#]} Qxg3+ $1 {[%emt 0:00:38][%mdl 512]} 48. Qxg3+ {[%emt 0:00:10]} Nxg3 {[%emt 0:00:02]} 49. h6+ {[%emt 0:00:55]} Kxh6 {[%emt 0:00:38]} 50. Kxg3 {[%emt 0:00:08]} a3 {[%emt 0:00:26]} 51. c5 {[%emt 0:00:03]} a2 {[%emt 0:00:09] Weighted Error Value: White=0.58/Black=0.36} 0-1